lending/lending_fUSD_20250122
["ID","MTS","AMOUNT","RATE_DAILY","PERIOD"]
[349972663,1737543045511,-500.0,0.00019711,2]
[349972664,1737543045520,-500.0,0.00019711,2]
[349972665,1737543045529,-500.0,0.00019711,2]
[349972666,1737543045538,-2029.85,0.00019711,2]
[349972667,1737543045547,-609.82,0.00019711,2]
[349972668,1737543045556,-500.0,0.00019711,2]
[349972669,1737543045565,-500.0,0.00019711,2]
[349972670,1737543045575,-1777.1,0.00019711,2]
[349972671,1737543045583,-500.0,0.00019711,2]
[349972672,1737543045593,-2741.48,0.00019711,2]
[349972673,1737543045602,-500.0,0.00019711,2]
[349972674,1737543045610,-500.0,0.00019711,2]
[349972675,1737543045620,-239.04785916,0.00019711,2]
[349972676,1737543045628,-545.63,0.00019711,2]
[349972677,1737543045638,-1922.1,0.00019711,2]
[349972678,1737543045647,-500.0,0.00019711,2]
[349972679,1737543045656,-500.0,0.00019711,2]
[349972680,1737543045666,-810.61,0.00019711,2]
[349972681,1737543045675,-500.0,0.00019711,2]
[349972682,1737543045684,-621.12,0.00019711,2]
[349972683,1737543045693,-2848.38,0.00019711,2]
[349972684,1737543045702,-500.0,0.00019711,2]
[349972685,1737543045711,-500.0,0.00019711,2]
[349972686,1737543045722,-1616.11,0.00019711,2]
[349972687,1737543045731,-500.0,0.00019711,2]
[349972688,1737543045741,-500.0,0.00019711,2]
[349972689,1737543045750,-500.0,0.00019711,2]
[349972690,1737543045759,-1138.85,0.00019711,2]
[349972691,1737543045768,-542.87,0.00019711,2]
[349972692,1737543045777,-825.59,0.00019711,2]
[349972693,1737543045786,-500.0,0.00019711,2]
[349972694,1737543045795,-500.0,0.00019711,2]
[349972695,1737543045805,-500.0,0.00019711,2]
[349972696,1737543045814,-500.0,0.00019711,2]
[349972697,1737543045823,-947.01,0.00019711,2]
[349972698,1737543045832,-500.0,0.00019711,2]
[349972699,1737543045842,-500.0,0.00019711,2]
[349972700,1737543045851,-500.0,0.00019711,2]
[349972701,1737543045860,-500.0,0.00019711,2]
[349972702,1737543045869,-925.69,0.00019711,2]
[349972703,1737543045879,-510.69,0.00019711,2]
[349972704,1737543045888,-500.0,0.00019711,2]
[349972705,1737543045897,-722.49,0.00019711,2]
[349972706,1737543045908,-839.26,0.00019711,2]
[349972707,1737543045917,-500.0,0.00019711,2]
[349972708,1737543045926,-500.0,0.00019711,2]
[349972709,1737543045935,-894.97,0.00019711,2]
[349972710,1737543045944,-500.0,0.00019711,2]
[349972711,1737543045953,-1861.2,0.00019711,2]
[349972712,1737543045963,-500.0,0.00019711,2]
[349972713,1737543045972,-1109.58,0.00019711,2]
[349972714,1737543045982,-1675.06,0.00019711,2]
[349972715,1737543045991,-964.77,0.00019711,2]
[349972716,1737543046000,-500.0,0.00019711,2]
[349972717,1737543046010,-500.0,0.00019711,2]
[349972718,1737543046019,-500.0,0.00019711,2]
[349972719,1737543046029,-512.82377305,0.00019711,2]
[349972720,1737543046038,-779.24,0.00019711,2]
[349972721,1737543046047,-2983.84,0.00019711,2]
[349972722,1737543046056,-844.16,0.00019711,2]
[349972723,1737543046065,-692.0,0.00019711,2]
[349972724,1737543046075,-1114.63,0.00019711,2]
[349972725,1737543046084,-500.0,0.00019711,2]
[349972726,1737543046093,-500.0,0.00019711,2]
[349972727,1737543046102,-500.0,0.00019711,2]
[349972728,1737543046111,-1604.95,0.00019711,2]
[349972729,1737543046123,-500.0,0.00019711,2]
[349972730,1737543046131,-806.08,0.00019711,2]
[349972731,1737543046142,-500.0,0.00019711,2]
[349972732,1737543046151,-500.0,0.00019711,2]
[349972733,1737543046160,-500.0,0.00019711,2]
[349972734,1737543046169,-500.0,0.00019711,2]
[349972735,1737543046178,-500.0,0.00019711,2]
[349972736,1737543046193,-500.0,0.00019711,2]
[349972737,1737543046202,-804.41,0.00019711,2]
[349972738,1737543046211,-500.0,0.00019711,2]
[349972740,1737543046222,-500.0,0.00019711,2]
[349972742,1737543046231,-1546.76,0.00019711,2]
[349972743,1737543046240,-1624.89,0.00019711,2]
[349972744,1737543046249,-500.0,0.00019711,2]
[349972745,1737543046260,-428.1816931,0.00019711,2]
[349972746,1737543046270,-500.0,0.00019711,2]
[349972747,1737543046279,-500.0,0.00019711,2]
[349972748,1737543046289,-1136.79,0.00019711,2]
[349972749,1737543046298,-500.0,0.00019711,2]
[349972750,1737543046307,-850.68,0.00019711,2]
[349972751,1737543046317,-500.0,0.00019711,2]
[349972752,1737543046328,-500.0,0.00019711,2]
[349972753,1737543046337,-596.84,0.00019711,2]
[349972754,1737543046346,-500.0,0.00019711,2]
[349972755,1737543046355,-500.0,0.00019711,2]
[349972756,1737543046364,-730.42,0.00019711,2]
[349972757,1737543046374,-617.9,0.00019711,2]
[349972758,1737543046383,-665.82,0.00019711,2]
[349972759,1737543046392,-500.0,0.00019711,2]
[349972760,1737543046400,-580.94,0.00019711,2]
[349972761,1737543046410,-500.0,0.00019711,2]
[349972762,1737543046419,-554.49,0.00019711,2]
[349972763,1737543046428,-1112.75,0.00019711,2]
[349972764,1737543046437,-500.0,0.00019711,2]
[349972765,1737543046446,-500.0,0.00019711,2]
[349972766,1737543046455,-500.0,0.00019711,2]
[349972767,1737543046464,-1973.54,0.00019711,2]
[349972768,1737543046474,-500.0,0.00019711,2]
[349972769,1737543046484,-518.0,0.00019711,2]
[349972770,1737543046493,-500.0,0.00019711,2]
[349972771,1737543046503,-500.0,0.00019711,2]
[349972772,1737543046512,-1300.76,0.00019711,2]
[349972773,1737543046521,-500.0,0.00019711,2]
[349972774,1737543046530,-500.0,0.00019711,2]
[349972775,1737543046539,-693.19,0.00019711,2]
[349972776,1737543046548,-500.0,0.00019711,2]
[349972777,1737543046557,-500.0,0.00019711,2]
[349972778,1737543046567,-500.0,0.00019712,2]
[349972779,1737543046576,-500.0,0.00019712,2]
[349972780,1737543046585,-500.0,0.00019712,2]
[349972781,1737543046594,-500.0,0.00019712,2]
[349972782,1737543046603,-500.0,0.00019712,2]
[349972783,1737543046612,-500.0,0.00019712,2]
[349972784,1737543046622,-500.0,0.00019712,2]
[349972785,1737543046631,-500.0,0.00019712,2]
[349972786,1737543046640,-518.75,0.00019712,2]
[349972787,1737543046649,-500.0,0.00019712,2]
[349972789,1737543046658,-500.0,0.00019712,2]
[349972791,1737543046667,-500.0,0.00019712,2]
[349972793,1737543046676,-500.0,0.00019712,2]
[349972794,1737543046686,-500.0,0.00019712,2]
[349972795,1737543046695,-500.0,0.00019712,2]
[349972796,1737543046704,-500.0,0.00019712,2]
[349972798,1737543046713,-500.0,0.00019712,2]
[349972799,1737543046721,-500.0,0.00019712,2]
[349972800,1737543046730,-500.0,0.00019712,2]
[349972801,1737543046739,-500.0,0.00019712,2]
[349972802,1737543046749,-500.0,0.00019712,2]
[349972803,1737543046758,-500.0,0.00019712,2]
[349972804,1737543046767,-500.0,0.00019712,2]
[349972805,1737543046776,-500.0,0.00019712,2]
[349972806,1737543046785,-500.0,0.00019712,2]
[349972807,1737543046795,-500.0,0.00019712,2]
[349972808,1737543046804,-449.72382005,0.00019712,2]
[349972809,1737543046813,-500.0,0.00019712,2]
[349972810,1737543046822,-500.0,0.00019712,2]
[349972811,1737543046832,-500.0,0.00019712,2]
[349972812,1737543046841,-500.0,0.00019712,2]
[349972813,1737543046850,-500.0,0.00019712,2]
[349972814,1737543046859,-500.0,0.00019712,2]
[349972815,1737543046869,-500.0,0.00019712,2]
[349972816,1737543046878,-500.0,0.00019712,2]
[349972817,1737543046887,-641.35413624,0.00019712,2]
[349972818,1737543046897,-500.0,0.00019712,2]
[349972819,1737543046907,-500.0,0.00019712,2]
[349972820,1737543046916,-500.0,0.00019712,2]
[349972821,1737543046925,-500.0,0.00019712,2]
[349972822,1737543046934,-500.0,0.00019712,2]
[349972823,1737543046943,-618.13867049,0.00019712,2]
[349972824,1737543046953,-500.0,0.00019712,2]
[349972825,1737543046963,-500.0,0.00019712,2]
[349972826,1737543046974,-500.0,0.00019712,2]
[349972827,1737543046984,-500.0,0.00019712,2]
[349972828,1737543046993,-500.0,0.00019712,2]
[349972829,1737543047003,-500.0,0.00019712,2]
[349972830,1737543047011,-500.0,0.00019712,2]
[349972831,1737543047021,-528.76169656,0.00019712,2]
[349972832,1737543047030,-326.52925612,0.00019712,2]
[349972833,1737543047039,-500.0,0.00019712,2]
[349972834,1737543047049,-500.0,0.00019712,2]
[349972835,1737543047059,-413.11684232,0.00019759,2]
[349972836,1737543047068,-500.0,0.00019773,2]
[349972837,1737543047077,-151.1839109,0.00019773,2]
[349972838,1737543047087,-150.0,0.00019792,2]
[349972839,1737543047096,-1268.54,0.00019886,2]
[349972840,1737543047106,-1340.61,0.00019886,2]
[349972841,1737543047115,-1505.03,0.00019886,2]
[349972842,1737543047125,-3584.15,0.00019886,2]
[349972843,1737543047134,-5673.23,0.00019886,2]
[349972844,1737543047144,-811.24,0.00019886,2]
[349972845,1737543047153,-679.08,0.00019886,2]
[349972846,1737543047163,-1980.65,0.00019886,2]
[349972847,1737543047172,-500.0,0.00019886,2]
[349972848,1737543047185,-841.31,0.00019886,2]
[349972849,1737543047195,-1149.29,0.00019886,2]
[349972850,1737543047204,-1284.8,0.00019886,2]
[349972851,1737543047214,-500.0,0.00019886,2]
[349972852,1737543047223,-1000.0,0.00019886,2]
[349972853,1737543047233,-579.99,0.00019886,2]
[349972854,1737543047242,-500.0,0.00019886,2]
[349972855,1737543047251,-1799.97,0.00019886,2]
[349972856,1737543047262,-1458.23,0.00019886,2]
[349972857,1737543047272,-719.12874926,0.00019907,2]
[349972858,1737543047282,-151.92369224,0.00019973,2]
[349972859,1737543047291,-500.0,0.00019973,2]
[349972860,1737543047300,-447.68525227,0.00019973,2]
[349972861,1737543047310,-517.55679911,0.00019973,2]
[349972862,1737543047319,-516.46756787,0.00019973,2]
[349972863,1737543047329,-500.0,0.00019973,2]
[349972864,1737543047338,-315.53500394,0.00019973,2]
[349972865,1737543047347,-520.01526648,0.00019973,2]
[349972866,1737543047357,-630.56646354,0.00019985,2]
[349972867,1737543047366,-500.0,0.00019985,2]
[349972868,1737543047378,-500.0,0.00019985,2]
[349972869,1737543047388,-643.15,0.00019985,2]
[349972870,1737543047398,-505.93,0.00019985,2]
[349972871,1737543047408,-500.0,0.00019985,2]
[349972872,1737543047418,-500.0,0.00019985,2]
[349972873,1737543047427,-500.0,0.00019985,2]
[349972874,1737543047436,-500.0,0.00019985,2]
[349972875,1737543047445,-500.0,0.00019985,2]
[349972876,1737543047455,-500.0,0.00019985,2]
[349972877,1737543047465,-500.0,0.00019985,2]
[349972878,1737543047474,-545.92,0.00019985,2]
[349972879,1737543047484,-500.0,0.00019985,2]
[349972880,1737543047495,-500.0,0.00019985,2]
[349972881,1737543047505,-500.0,0.00019985,2]
[349972882,1737543047515,-500.0,0.00019985,2]
[349972883,1737543047524,-500.0,0.00019985,2]
[349972884,1737543047533,-500.0,0.00019985,2]
[349972885,1737543047543,-500.66,0.00019985,2]
[349972886,1737543047553,-500.0,0.00019985,2]
[349972887,1737543047562,-500.0,0.00019985,2]
[349972888,1737543047572,-500.0,0.00019985,2]
[349972889,1737543047582,-227.04412512,0.00019985,2]
[349972890,1737543047592,-169.1432173,0.00019985,2]
[349972891,1737543047602,-500.0,0.00019985,2]
[349972892,1737543047611,-500.0,0.00019985,2]
[349972893,1737543047621,-500.0,0.00019985,2]
[349972894,1737543047631,-500.0,0.00019985,2]
[349972895,1737543047640,-500.0,0.00019985,2]
[349972896,1737543047650,-611.0,0.00019985,2]
[349972897,1737543047660,-549.49214495,0.00019985,2]
[349972898,1737543047669,-633.18,0.00019985,2]
[349972899,1737543047679,-636.57,0.00019985,2]
[349972900,1737543047688,-622.41,0.00019985,2]
[349972901,1737543047698,-696.905612,0.00019985,2]
[349972902,1737543047708,-615.48,0.00019985,2]
[349972903,1737543047717,-593.21,0.00019985,2]
[349972904,1737543047727,-500.0,0.00019985,2]
[349972905,1737543047736,-500.0,0.00019985,2]
[349972906,1737543047746,-500.0,0.00019985,2]
[349972907,1737543047755,-500.0,0.00019985,2]
[349972908,1737543047764,-500.0,0.00019985,2]
[349972909,1737543047774,-500.0,0.00019985,2]
[349972910,1737543047783,-734.89,0.00019985,2]
[349972911,1737543047792,-430.736439,0.00019985,2]
[349972912,1737543047802,-500.0,0.00019985,2]
[349972913,1737543047811,-543.19,0.00019985,2]
[349972914,1737543047821,-514.06,0.00019985,2]
[349972915,1737543047830,-500.0,0.00019985,2]
[349972916,1737543047840,-500.0,0.00019985,2]
[349972917,1737543047849,-500.0,0.00019985,2]
[349972918,1737543047859,-500.0,0.00019985,2]
[349972919,1737543047868,-500.0,0.00019985,2]
[349972920,1737543047878,-651.4,0.00019985,2]
[349972921,1737543047888,-565.61,0.00019985,2]
[349972922,1737543047897,-607.08,0.00019985,2]
[349972923,1737543047907,-544.76,0.00019985,2]
[349972924,1737543047916,-500.0,0.00019985,2]
[349972925,1737543047925,-500.0,0.00019985,2]
[349972926,1737543048080,-557.09,0.00019985,2]
[349972927,1737543048090,-500.0,0.00019985,2]
[349972928,1737543048100,-547.46,0.00019985,2]
[349972929,1737543048109,-500.0,0.00019985,2]
[349972930,1737543048119,-500.0,0.00019985,2]
[349972931,1737543048130,-500.0,0.00019985,2]
[349972932,1737543048140,-522.15,0.00019985,2]
[349972933,1737543048149,-674.29,0.00019985,2]
[349972934,1737543048159,-500.0,0.00019985,2]
[349972935,1737543048169,-500.0,0.00019985,2]
[349972936,1737543048179,-500.0,0.00019985,2]
[349972937,1737543048192,-500.0,0.00019985,2]
[349972938,1737543048202,-500.0,0.00019985,2]
[349972939,1737543048211,-500.0,0.00019985,2]
[349972940,1737543048221,-500.0,0.00019985,2]
[349972941,1737543048231,-2005.85,0.00019985,2]
[349972942,1737543048241,-500.0,0.00019985,2]
[349972943,1737543048250,-728.29,0.00019985,2]
[349972944,1737543048261,-500.0,0.00019985,2]
[349972945,1737543048276,-500.0,0.00019985,2]
[349972946,1737543048285,-654.91,0.00019985,2]
[349972947,1737543048295,-500.0,0.00019985,2]
[349972948,1737543048304,-1335.55,0.00019985,2]
[349972949,1737543048314,-500.0,0.00019985,2]
[349972950,1737543048324,-500.0,0.00019985,2]
[349972951,1737543048334,-563.18,0.00019985,2]
[349972952,1737543048343,-579.89,0.00019985,2]
[349972953,1737543048353,-605.71,0.00019985,2]
[349972954,1737543048363,-804.54,0.00019985,2]
[349972955,1737543048373,-500.0,0.00019985,2]
[349972956,1737543048383,-500.0,0.00019985,2]
[349972957,1737543048393,-1153.22,0.00019985,2]
[349972958,1737543048404,-500.0,0.00019985,2]
[349972959,1737543048415,-1619.59,0.00019985,2]
[349972960,1737543048426,-500.0,0.00019985,2]
[349972961,1737543048436,-1176.05,0.00019985,2]
[349972962,1737543048447,-1526.1,0.00019985,2]
[349972963,1737543048457,-1317.3,0.00019985,2]
[349972964,1737543048468,-638.3,0.00019985,2]
[349972965,1737543048477,-534.41,0.00019985,2]
[349972966,1737543048487,-836.8,0.00019985,2]
[349972967,1737543048497,-500.0,0.00019985,2]
[349972968,1737543048506,-641.75,0.00019985,2]
[349972969,1737543048515,-1279.84,0.00019985,2]
[349972970,1737543048525,-500.0,0.00019985,2]
[349972971,1737543048535,-834.28,0.00019985,2]
[349972972,1737543048545,-1061.45,0.00019985,2]
[349972973,1737543048556,-377.35309206,0.00019985,2]
[349972974,1737543048566,-1354.03,0.00019985,2]
[349972975,1737543048576,-889.89,0.00019985,2]
[349972976,1737543048586,-887.9,0.00019985,2]
[349972977,1737543048596,-500.0,0.00019985,2]
[349972978,1737543048606,-500.0,0.00019985,2]
[349972979,1737543048616,-500.0,0.00019985,2]
[349972980,1737543048627,-1044.04,0.00019985,2]
[349972981,1737543048637,-500.0,0.00019985,2]
[349972982,1737543048646,-500.0,0.00019985,2]
[349972983,1737543048656,-534.09,0.00019985,2]
[349972984,1737543048667,-1385.07,0.00019985,2]
[349972985,1737543048676,-846.02,0.00019985,2]
[349972986,1737543048686,-2977.88,0.00019985,2]
[349972987,1737543048696,-579.54,0.00019985,2]
[349972988,1737543048705,-500.0,0.00019985,2]
[349972989,1737543048715,-1751.24,0.00019985,2]
[349972990,1737543048724,-500.0,0.00019985,2]
[349972991,1737543048734,-501.98,0.00019985,2]
[349972992,1737543048743,-500.0,0.00019985,2]
[349972993,1737543048753,-1171.54,0.00019985,2]
[349972994,1737543048763,-500.0,0.00019985,2]
[349972995,1737543048772,-1334.69,0.00019985,2]
[349972996,1737543048782,-500.0,0.00019985,2]
[349972997,1737543048791,-500.0,0.00019985,2]
[349972998,1737543048802,-583.39,0.00019985,2]
[349972999,1737543048820,-2029.85,0.00019985,2]
[349973000,1737543048830,-609.82,0.00019985,2]
[349973001,1737543048842,-500.0,0.00019985,2]
[349973002,1737543048852,-500.0,0.00019985,2]
[349973003,1737543048861,-1777.1,0.00019985,2]
[349973004,1737543048871,-500.0,0.00019985,2]
[349973005,1737543048881,-2741.48,0.00019985,2]
[349973006,1737543048891,-545.63,0.00019985,2]
[349973007,1737543048900,-1922.1,0.00019985,2]
[349973008,1737543048910,-500.0,0.00019985,2]
[349973009,1737543048919,-810.61,0.00019985,2]
[349973010,1737543048928,-180.72,0.00019985,2]
[349973011,1737543048935,-621.12,0.00019985,2]
[349973012,1737543048943,-2848.38,0.00019985,2]
[349973013,1737543048952,-261.75615589,0.00019985,2]
[349973014,1737543048959,-1616.11,0.00019985,2]
[349973015,1737543048969,-500.0,0.00019985,2]
[349973016,1737543048978,-1138.85,0.00019985,2]
[349973017,1737543048989,-542.87,0.00019985,2]
[349973018,1737543048998,-825.59,0.00019985,2]
[349973019,1737543049008,-500.0,0.00019985,2]
[349973020,1737543049017,-500.0,0.00019985,2]
[349973021,1737543049027,-947.01,0.00019985,2]
[349973022,1737543049037,-500.0,0.00019985,2]
[349973023,1737543049046,-500.0,0.00019985,2]
[349973024,1737543049057,-925.69,0.00019985,2]
[349973025,1737543049066,-510.69,0.00019985,2]
[349973026,1737543049077,-722.49,0.00019985,2]
[349973027,1737543049086,-839.26,0.00019985,2]
[349973028,1737543049096,-894.97,0.00019985,2]
[349973029,1737543049105,-500.0,0.00019985,2]
[349973030,1737543049114,-1861.2,0.00019985,2]
[349973031,1737543049124,-500.0,0.00019985,2]
[349973032,1737543049134,-1109.58,0.00019985,2]
[349973033,1737543049144,-1675.06,0.00019985,2]
[349973034,1737543049154,-964.77,0.00019985,2]
[349973035,1737543049163,-779.24,0.00019985,2]
[349973036,1737543049172,-2983.84,0.00019985,2]
[349973037,1737543049182,-844.16,0.00019985,2]
[349973038,1737543049195,-692.0,0.00019985,2]
[349973039,1737543049204,-1114.63,0.00019985,2]
[349973040,1737543049214,-500.0,0.00019985,2]
[349973041,1737543049224,-500.0,0.00019985,2]
[349973042,1737543049234,-500.0,0.00019985,2]
[349973043,1737543049243,-1604.95,0.00019985,2]
[349973044,1737543049253,-806.08,0.00019985,2]
[349973045,1737543049263,-500.0,0.00019985,2]
[349973046,1737543049273,-500.0,0.00019985,2]
[349973047,1737543049285,-500.0,0.00019985,2]
[349973048,1737543049296,-804.41,0.00019985,2]
[349973049,1737543049305,-1546.76,0.00019985,2]
[349973050,1737543049315,-1624.89,0.00019985,2]
[349973051,1737543049325,-500.0,0.00019985,2]
[349973052,1737543049334,-500.0,0.00019985,2]
[349973053,1737543049344,-1136.79,0.00019985,2]
[349973054,1737543049354,-500.0,0.00019985,2]
[349973055,1737543049363,-850.68,0.00019985,2]
[349973056,1737543049375,-500.0,0.00019985,2]
[349973057,1737543049384,-500.0,0.00019985,2]
[349973058,1737543049394,-596.84,0.00019985,2]
[349973059,1737543049403,-500.0,0.00019985,2]
[349973060,1737543049412,-500.0,0.00019985,2]
[349973061,1737543049422,-730.42,0.00019985,2]
[349973062,1737543049431,-617.9,0.00019985,2]
[349973063,1737543049441,-665.82,0.00019985,2]
[349973064,1737543049450,-500.0,0.00019985,2]
[349973065,1737543049460,-580.94,0.00019985,2]
[349973066,1737543049473,-500.0,0.00019985,2]
[349973067,1737543049483,-1112.75,0.00019985,2]
[349973068,1737543049493,-554.49,0.00019985,2]
[349973069,1737543049502,-500.0,0.00019985,2]
[349973070,1737543049511,-500.0,0.00019985,2]
[349973071,1737543049521,-1973.54,0.00019985,2]
[349973072,1737543049530,-500.0,0.00019985,2]
[349973073,1737543049539,-518.0,0.00019985,2]
[349973074,1737543049548,-500.0,0.00019985,2]
[349973075,1737543049557,-500.0,0.00019985,2]
[349973076,1737543049566,-1300.76,0.00019985,2]
[349973077,1737543049575,-500.0,0.00019985,2]
[349973078,1737543049584,-500.0,0.00019985,2]
[349973079,1737543049593,-693.19,0.00019985,2]
[349973080,1737543049603,-500.0,0.00019985,2]
[349973081,1737543049612,-500.0,0.00019985,2]
[349973082,1737543049622,-500.0,0.00019986,2]
[349973083,1737543049632,-500.0,0.00019986,2]
[349973084,1737543049641,-518.75,0.00019986,2]
[349973085,1737543049650,-500.0,0.00019986,2]
[349973086,1737543049659,-500.0,0.00019986,2]
[349973087,1737543049668,-500.0,0.00019986,2]
[349973088,1737543049678,-500.0,0.00019986,2]
[349973089,1737543049689,-500.0,0.00019986,2]
[349973090,1737543049704,-500.0,0.00019986,2]
[349973091,1737543049717,-500.0,0.00019986,2]
[349973092,1737543049726,-500.0,0.00019986,2]
[349973093,1737543049735,-500.0,0.00019986,2]
[349973094,1737543049744,-500.0,0.00019986,2]
[349973095,1737543049753,-500.0,0.00019986,2]
[349973096,1737543049762,-589.65860214,0.00019986,2]
[349973097,1737543049771,-500.0,0.00019986,2]
[349973098,1737543049780,-500.0,0.00019986,2]
[349973099,1737543049789,-500.0,0.00019986,2]
[349973100,1737543049798,-500.0,0.00019986,2]
[349973101,1737543049807,-12499.98,0.0002,2]
[349973102,1737543049817,-4899.86,0.0002,2]
[349973103,1737543049826,-151.18348054,0.00020016,2]
[349973104,1737543049835,-231.8626418,0.00020045,2]
[349973105,1737543049844,-634.57515484,0.00020045,2]
[349973106,1737543049853,-200.0,0.00020084,2]
[349973107,1737543049863,-7912.42,0.00020145,2]
[349973108,1737543049872,-1876.35,0.00020145,2]
[349973109,1737543049882,-1515.05,0.00020145,2]
[349973110,1737543049891,-3204.3,0.00020145,2]
[349973111,1737543049901,-999.99,0.00020145,2]
[349973112,1737543049911,-1430.55,0.00020145,2]
[349973113,1737543049920,-9999.99,0.00020145,2]
[349973114,1737543049930,-4138.75,0.00020145,2]
[349973115,1737543049938,-150.99,0.00020145,2]
[349973116,1737543049947,-3600.01,0.00020145,2]
[349973117,1737543049956,-150.99,0.00020145,2]
[349973118,1737543049966,-299.99,0.00020145,7]
[349973119,1737543049974,-2997.15,0.00020145,2]
[349973120,1737543049983,-393.41,0.00020145,2]
[349973121,1737543049992,-9043.02,0.00020145,2]
[349973122,1737543050002,-499.99,0.00020145,2]
[349973123,1737543050011,-32136.3,0.00020145,2]
[349973124,1737543050020,-377.71,0.00020145,2]
[349973125,1737543050029,-1381.46,0.00020145,2]
[349973126,1737543050039,-1268.54,0.0002016,2]
[349973127,1737543050048,-1340.61,0.0002016,2]
[349973128,1737543050057,-1505.03,0.0002016,2]
[349973129,1737543050067,-3584.15,0.0002016,2]
[349973130,1737543050075,-5673.23,0.0002016,2]
[349973131,1737543050085,-811.24,0.0002016,2]
[349973132,1737543050094,-679.08,0.0002016,2]
[349973133,1737543050103,-1980.65,0.0002016,2]
[349973134,1737543050112,-500.0,0.0002016,2]
[349973135,1737543050121,-841.31,0.0002016,2]
[349973136,1737543050131,-1284.8,0.0002016,2]
[349973137,1737543050141,-500.0,0.0002016,2]
[349973138,1737543050151,-1000.0,0.0002016,2]
[349973139,1737543050160,-579.99,0.0002016,2]
[349973140,1737543050169,-500.0,0.0002016,2]
[349973141,1737543050178,-1799.97,0.0002016,2]
[349973142,1737543050189,-1458.23,0.0002016,2]
[349973143,1737543050198,-719.12874926,0.00020191,2]
[349973144,1737543050208,-298.05,0.00020247,2]
[349973145,1737543050217,-150.0,0.00020247,2]
[349973146,1737543050227,-298.05,0.00020247,2]
[349973147,1737543050236,-500.0,0.00020258,2]
[349973148,1737543050245,-500.0,0.00020259,2]
[349973149,1737543050255,-500.0,0.00020259,2]
[349973150,1737543050264,-643.15,0.00020259,2]
[349973151,1737543050273,-505.93,0.00020259,2]
[349973152,1737543050282,-500.0,0.00020259,2]
[349973153,1737543050291,-500.0,0.00020259,2]
[349973154,1737543050301,-500.0,0.00020259,2]
[349973155,1737543050310,-500.0,0.00020259,2]
[349973156,1737543050319,-500.0,0.00020259,2]
[349973157,1737543050329,-500.0,0.00020259,2]
[349973158,1737543050338,-500.0,0.00020259,2]
[349973159,1737543050347,-545.92,0.00020259,2]
[349973160,1737543050356,-500.0,0.00020259,2]
[349973161,1737543050365,-500.0,0.00020259,2]
[349973162,1737543050375,-500.0,0.00020259,2]
[349973163,1737543050384,-500.0,0.00020259,2]
[349973164,1737543050393,-500.0,0.00020259,2]
[349973165,1737543050402,-500.0,0.00020259,2]
[349973166,1737543050411,-500.66,0.00020259,2]
[349973167,1737543050420,-500.0,0.00020259,2]
[349973168,1737543050429,-500.0,0.00020259,2]